bitfinex-derivatives/quotes_SOLF0:USTF0_20241212
["timestamp","ask_amount","ask_price","bid_price","bid_amount"]
[1734002474773,2.12,229.1,228.99,20.74981578]
[1734002475666,2.1821,229.08,229.04,2.1823]
[1734002476672,2.1821,229.08,228.99,20.74981578]
[1734002476673,2.182,229.09,229.05,2.1823]
[1734002476874,25.75565556,229.19,229.03,20.74981578]
[1734002477077,10.73160617,229.18,229.04,1.3911]
[1734002477377,2.12,229.18,229.06,12.96969051]
[1734002478170,2.1817,229.12,229.08,2.182]
[1734002478374,2.12,229.12,229.04,2.7785]
[1734002478880,2.12,229.12,229.07,2.1821]
[1734002479574,2.1819,229.1,229.07,2.1821]
[1734002480175,2.182,229.09,229.05,2.1823]
[1734002480986,2.1819,229.1,229.06,2.1822]
[1734002481386,2.12,229.12,229.04,2.7785]
[1734002481685,2.12,229.12,229.07,2.1821]
[1734002482075,2.1819,229.1,229.06,2.1822]
[1734002482278,2.12,229.12,229.04,2.7785]
[1734002482497,2.12,229.12,229.04,1.3911]
[1734002482684,2.12,229.12,229.0,12.96969051]
[1734002483185,2.1823,229.06,229.02,2.1825]
[1734002483579,2.1824,229.05,228.97,12.96969051]
[1734002483977,2.1824,229.05,229.0,2.1827]
[1734002484179,180.64141675,229.18,229.0,12.96969051]
[1734002484180,193.61110726,229.18,229.0,12.96969051]
[1734002484388,20.3720706,229.17,229.03,12.96969051]
[1734002484577,2.12,229.16,229.03,12.96969051]
[1734002484778,1.3313,229.19,229.09,12.96969051]
[1734002484779,8.6317137,229.17,229.09,12.96969051]
[1734002485079,2.12,229.19,229.09,12.96969051]
[1734002485381,2.12,229.19,229.09,15.08969051]
[1734002485585,2.12,229.21,229.13,12.96969051]
[1734002486084,2.12,229.21,229.14,2.1815]
[1734002487179,2.1811,229.19,229.14,2.1815]
[1734002487888,2.12,229.21,229.14,2.1815]
[1734002488083,2.1811,229.18,229.13,2.1816]
[1734002488474,2.12,229.21,229.1,14.39099051]
[1734002488685,15.08969051,229.21,229.1,2.1818]
[1734002489488,15.08969051,229.21,229.09,2.1819]
[1734002489781,15.08969051,229.21,229.07,12.96969051]
[1734002490078,15.08969051,229.21,229.05,1.4234]
[1734002490079,2.12,229.21,229.1,12.96969051]
[1734002490382,2.181,229.19,229.1,12.96969051]
[1734002490584,2.181,229.19,229.11,2.12]
[1734002490780,2.12,229.21,229.15,2.1814]
[1734002491375,12.96969051,229.27,229.13,12.96969051]
[1734002491577,2.14,229.26,229.16,12.96969051]
[1734002491789,2.14,229.26,229.13,12.96969051]
[1734002492379,2.1809,229.21,229.16,2.1813]
[1734002492979,2.181,229.2,229.16,2.1813]
[1734002495382,2.14,229.21,229.14,2.78]
[1734002495987,2.14,229.21,229.14,1.3313]
[1734002497587,6.71520575,229.29,229.16,12.96969051]
[1734002497588,2.14,229.24,229.16,12.96969051]
[1734002497993,4.3205,229.24,229.16,12.96969051]
[1734002498385,4.3205,229.24,229.16,14.30769051]
[1734002498585,4.3205,229.24,229.2,2.1808]
[1734002499887,2.14,229.24,229.16,14.30769051]
[1734002500189,2.14,229.24,229.16,1.338]
[1734002500384,2.14,229.24,229.14,1.3313]
[1734002500589,2.1811,229.19,229.15,2.1814]
[1734002500892,2.14,229.24,229.14,1.3313]
[1734002501289,2.1808,229.21,229.14,1.3313]
[1734002501488,5.23114629,229.3,229.14,1.3313]
[1734002501489,18.2008368,229.3,229.16,12.96969051]
[1734002501695,2.1805,229.24,229.2,2.1809]
[1734002502892,2.14,229.26,229.19,12.96969051]
[1734002503186,2.10783,229.31,229.19,12.96969051]
[1734002503489,2.14,229.3,229.23,2.1806]
[1734002505587,2.1803,229.27,229.23,2.1806]
[1734002505785,2.14,229.3,229.2,1.429]
[1734002505996,4.24783,229.31,229.22,12.96969051]
[1734002506295,2.1801,229.28,229.22,12.96969051]
[1734002506494,4.24783,229.31,229.21,2.14]
[1734002506690,2.1804,229.26,229.21,2.14]
[1734002507291,2.1804,229.26,229.23,2.1806]
[1734002509801,4.24783,229.31,229.2,2.8583]
[1734002510492,2.1801,229.29,229.23,2.1806]
[1734002510694,2.1801,229.29,229.2,2.8583]
[1734002511196,2.18,229.3,229.22,12.96969051]
[1734002511400,2.18,229.3,229.23,1.3665]
[1734002511599,2.10783,229.31,229.23,1.3665]
[1734002512197,2.18,229.3,229.25,2.1804]
[1734002512395,2.10783,229.31,229.23,1.3665]
[1734002513496,2.1801,229.29,229.25,2.1804]
[1734002513701,2.1801,229.29,229.23,1.3665]
[1734002514602,2.1801,229.29,229.26,2.1803]
[1734002517604,2.18,229.3,229.23,1.3665]
[1734002517806,2.10783,229.31,229.23,1.3665]
[1734002518000,2.1803,229.27,229.23,3.5471]
[1734002518604,2.14,229.29,229.23,1.3665]
[1734002518904,2.14,229.29,229.16,12.96969051]
[1734002519203,2.1812,229.18,229.14,4.9686]
[1734002519406,12.96969051,229.26,229.14,2.7872]
[1734002519407,2.14,229.23,229.14,2.7872]
[1734002519802,2.1809,229.21,229.14,4.9686]
[1734002520007,2.14,229.23,229.14,2.7872]
[1734002520902,2.14,229.23,229.14,15.75689051]
[1734002521108,2.1804,229.26,229.2,2.1809]
[1734002521407,2.12,229.27,229.17,12.96969051]
[1734002521603,2.1803,229.26,229.19,2.181]
[1734002521805,2.1803,229.26,229.2,12.96969051]
[1734002522710,2.12,229.27,229.17,12.96969051]
[1734002523115,2.12,229.27,229.14,17.93839051]
[1734002523414,2.1811,229.18,229.14,17.93839051]
[1734002524611,182.00101675,229.3,229.17,12.96969051]
[1734002524612,2.12,229.25,229.17,12.96969051]
[1734002524817,1.3596,229.3,229.17,12.96969051]
[1734002525015,2.1805,229.25,229.21,2.1808]
[1734002525517,2.1803,229.26,229.22,2.1807]
[1734002526514,2.1802,229.28,229.23,2.1806]
[1734002526723,2.1802,229.28,229.2,12.96969051]
[1734002526919,2.12,229.29,229.2,15.08969051]
[1734002527611,2.1803,229.27,229.23,2.1805]
[1734002529021,2.1803,229.27,229.24,2.1805]
[1734002529217,2.1803,229.27,229.2,15.08969051]
[1734002529422,2.1804,229.26,229.22,2.1807]
[1734002530016,2.1804,229.26,229.2,15.08969051]
[1734002530319,2.1804,229.26,229.23,2.1806]
[1734002531118,4.22783,229.31,229.2,15.08969051]
[1734002531414,2.10783,229.31,229.23,12.96969051]
[1734002532020,4.28773,229.31,229.27,2.1802]
[1734002532326,2.10783,229.31,229.26,12.96969051]
[1734002533525,2.10783,229.31,229.3,12.96969051]
[1734002534023,2.10783,229.31,229.3,15.14969051]
[1734002534415,57.5814952,229.44,229.3,12.96969051]
[1734002534722,2.12,229.43,229.3,12.96969051]
[1734002535025,2.1793,229.38,229.33,2.1796]
[1734002535220,2.1793,229.38,229.3,15.08969051]
[1734002537020,2.12,229.41,229.27,12.96969051]
[1734002537222,12.96969051,229.39,229.24,17.86549051]
[1734002537624,2.1798,229.32,229.24,17.86549051]
[1734002538019,2.1798,229.32,229.27,2.1802]
[1734002538732,2.1797,229.33,229.29,2.18]
[1734002539322,2.1797,229.33,229.27,12.96969051]
[1734002539526,2.1797,229.33,229.3,2.1799]
[1734002539725,2.12,229.35,229.3,2.1799]
[1734002539929,2.1796,229.34,229.3,2.1799]
[1734002540727,2.12,229.35,229.28,5.16777021]
[1734002540932,2.1797,229.33,229.29,2.18]
[1734002542330,2.1797,229.33,229.3,2.18]
[1734002542732,2.1796,229.34,229.3,2.18]
[1734002542934,2.1796,229.34,229.28,5.16777021]
[1734002542935,2.12,229.37,229.33,12.96969051]
[1734002543129,2.12,229.4,229.3,12.96969051]
[1734002543330,2.12,229.4,229.3,15.14959051]
[1734002543527,2.12,229.4,229.3,12.96969051]
[1734002543729,22.51773953,229.4,229.3,12.96969051]
[1734002543936,8.64031552,229.39,229.3,15.14959051]
[1734002544137,8.64031552,229.38,229.3,12.96969051]
[1734002544326,2.18,229.3,229.27,12.96969051]
[1734002544525,2.12,229.35,229.27,12.96969051]
[1734002545031,2.12,229.35,229.25,5.24381311]
[1734002545235,2.12,229.35,229.24,15.74549051]
[1734002545528,2.12,229.35,229.24,1.4306]
[1734002545731,22.50763749,229.35,229.24,1.4306]
[1734002546039,20.38763749,229.34,229.24,1.4306]
[1734002546226,8.63628541,229.33,229.24,1.4306]
[1734002546430,2.12,229.35,229.24,1.4306]
[1734002546631,2.12,229.35,229.24,3.6111]
[1734002546934,22.51640555,229.35,229.24,3.6111]
[1734002547233,2.12,229.35,229.24,3.6111]
[1734002547535,2.1802,229.27,229.24,3.6111]
[1734002548331,2.12,229.35,229.24,1.4306]
[1734002548535,2.12,229.35,229.14,1.3365]
[1734002548536,12.96969051,229.34,229.18,12.96969051]
[1734002548740,12.96969051,229.31,229.18,12.96969051]
[1734002549038,2.12,229.3,229.18,12.96969051]
[1734002549232,12.1397961,229.3,229.18,12.96969051]
[1734002549437,3.502,229.3,229.18,12.96969051]
[1734002550339,2.1807,229.23,229.19,2.181]
[1734002550739,2.12,229.25,229.18,12.96969051]
[1734002551735,2.1803,229.27,229.21,2.1808]
[1734002551938,2.14,229.3,229.24,12.96969051]
[1734002552543,2.1802,229.28,229.24,12.96969051]
[1734002553032,2.14,229.3,229.21,12.96969051]
[1734002553440,2.14,229.3,229.19,2.14]
[1734002554035,2.14,229.3,229.2,2.1808]
[1734002554036,2.1805,229.25,229.2,2.1808]
[1734002554355,2.14,229.3,229.18,12.96969051]
[1734002554538,2.1808,229.22,229.18,12.96969051]
[1734002555137,2.1808,229.22,229.16,2.14]
[1734002555438,2.14,229.25,229.15,1.3455]
[1734002555637,2.181,229.19,229.15,1.3455]
[1734002556035,2.1809,229.2,229.16,2.1813]
[1734002556842,2.14,229.25,229.15,6.55927572]
[1734002556843,2.1808,229.22,229.15,6.55927572]
[1734002557137,2.14,229.25,229.15,6.55927572]
[1734002557742,2.1806,229.23,229.19,2.181]
[1734002557939,2.1806,229.23,229.15,6.55927572]
[1734002558236,2.1807,229.22,229.15,6.55927572]
[1734002558941,2.1807,229.22,229.17,2.1811]
[1734002559344,2.1808,229.21,229.17,2.1811]
[1734002560044,2.14,229.25,229.15,3.5269]
[1734002560236,2.14,229.25,229.12,1.3984]
[1734002560439,2.14,229.25,229.07,1.4048]
[1734002560440,22.87406245,229.25,229.07,1.4048]
[1734002560636,2.1815,229.15,229.1,2.1818]
[1734002560843,2.14,229.17,229.07,1.4048]
[1734002561144,2.1816,229.14,229.09,2.1819]
[1734002561345,2.14,229.17,229.09,2.1819]
[1734002561540,2.14,229.17,229.07,1.4048]
[1734002561936,2.14,229.17,229.1,2.1819]
[1734002562739,2.14,229.17,229.08,5.17983523]
[1734002563343,2.14,229.17,229.11,2.1817]
[1734002564740,2.14,229.17,229.08,5.17983523]
[1734002565346,2.1816,229.13,229.09,2.1819]
[1734002566141,2.1815,229.14,229.1,2.1818]
[1734002567645,2.1816,229.13,229.1,2.1818]
[1734002567845,2.14,229.17,229.1,2.1818]
[1734002568054,2.14,229.17,229.08,5.17983523]
[1734002568642,2.14,229.17,229.12,2.1816]
[1734002568947,2.1812,229.17,229.08,5.17983523]
[1734002569346,2.1812,229.17,229.13,2.1815]
[1734002571752,2.1813,229.16,229.13,2.1815]
[1734002574048,2.14,229.21,229.08,5.17983523]
[1734002574552,2.14,229.2,229.08,5.17983523]
[1734002575059,2.1816,229.14,229.1,2.1818]
[1734002576147,2.14,229.2,229.1,2.1818]
[1734002576356,2.1816,229.13,229.1,2.1818]
[1734002576553,2.14,229.2,229.09,2.1819]
[1734002576861,2.182,229.09,229.07,1.4048]
[1734002577254,2.14,229.15,229.09,2.182]
[1734002577656,2.14,229.15,229.08,2.182]
[1734002577657,2.1817,229.12,229.08,2.182]
[1734002577951,2.14,229.15,229.08,2.182]
[1734002578652,2.14,229.15,229.05,18.15439784]
[1734002578857,2.14,229.15,229.05,5.18396589]
[1734002579054,2.14,229.15,229.02,15.66283195]
[1734002579258,2.1821,229.08,229.04,2.1824]
[1734002579954,2.1821,229.08,229.05,2.1823]
[1734002580253,2.1819,229.1,229.05,12.97043195]
[1734002580456,12.97043195,229.2,229.05,12.97043195]
[1734002580656,2.12,229.19,229.07,2.1821]
[1734002582651,2.1818,229.11,229.07,2.1821]
[1734002583257,2.1818,229.11,229.05,12.97043195]
[1734002583757,2.12,229.14,229.08,12.97043195]
[1734002583957,2.12,229.14,229.1,2.1818]
[1734002584754,2.12,229.14,229.08,12.97043195]
[1734002584959,2.1818,229.11,229.06,2.12]
[1734002585155,2.12,229.14,229.06,4.3022]
[1734002585457,2.1818,229.11,229.06,2.12]
[1734002585664,2.12,229.14,229.06,2.12]
[1734002585858,2.12,229.14,229.06,2.1822]
[1734002586058,2.12,229.14,229.04,12.97043195]
[1734002586961,2.12,229.15,229.04,12.97043195]
[1734002587658,2.182,229.09,229.04,12.97043195]
[1734002587858,2.12,229.15,229.04,12.97043195]
[1734002588055,2.1817,229.12,229.05,2.1823]
[1734002588260,2.12,229.15,229.05,2.1823]
[1734002588453,2.12,229.15,229.04,12.97043195]
[1734002588762,2.1819,229.1,229.06,2.1822]
[1734002589060,2.12,229.15,229.02,2.6924]
[1734002589263,2.12,229.15,229.04,2.1824]
[1734002589464,2.12,229.15,229.03,12.97043195]
[1734002590362,2.12,229.15,229.03,18.1980325]
[1734002590562,2.1821,229.08,229.05,2.1823]
[1734002590759,2.1821,229.08,229.03,18.1980325]
[1734002591159,2.1821,229.08,228.93,17.33733195]
[1734002591160,2.12,229.1,228.93,4.3669]
[1734002591365,12.97043195,229.14,228.99,12.97043195]
[1734002591366,2.12,229.09,228.99,12.97043195]
[1734002591566,2.12,229.08,228.97,5.30147223]
[1734002591762,2.1827,229.02,228.99,2.1829]
[1734002592761,2.12,229.07,228.94,4.7999]
[1734002592956,2.12,229.07,228.96,12.97043195]
[1734002593867,2.1825,229.03,228.96,12.97043195]
[1734002594161,2.12,229.07,228.99,12.97043195]
[1734002594366,2.1824,229.05,229.02,2.1826]
[1734002594563,2.12,229.07,228.96,12.97043195]
[1734002594758,2.12,229.07,228.96,15.09043195]
[1734002595171,2.12,229.07,228.99,12.97043195]
[1734002595356,2.12,229.11,229.02,12.97043195]
[1734002595758,2.182,229.09,229.02,12.97043195]
[1734002595960,2.12,229.12,229.02,12.97043195]
[1734002596359,2.1819,229.1,229.02,14.40083195]
[1734002597372,1.3983,229.14,229.02,14.40083195]
[1734002597560,2.182,229.09,229.02,14.40083195]
[1734002597971,2.1821,229.08,229.04,2.1824]
[1734002598666,2.182,229.09,229.02,14.40083195]
[1734002599564,2.12,229.13,229.05,2.1823]
[1734002599769,2.1821,229.08,229.05,2.1823]
[1734002600166,2.1821,229.08,229.02,14.40083195]
[1734002600967,2.1821,229.08,229.04,2.1824]
[1734002601272,14.36873195,229.14,229.02,1.4304]
[1734002601569,14.36873195,229.14,228.96,14.40713195]
[1734002601570,12.97043195,229.11,228.96,14.40713195]
[1734002602168,12.97043195,229.11,228.99,2.1829]
[1734002602169,2.1827,229.02,228.99,2.1829]
[1734002604167,2.1828,229.01,228.98,2.183]
[1734002605574,2.1828,229.0,228.97,2.1831]
[1734002607373,2.12,229.06,228.96,14.40713195]
[1734002607974,2.1827,229.02,228.98,2.183]
[1734002608477,2.12,229.06,228.98,2.183]
[1734002608478,2.1827,229.01,228.98,2.183]
[1734002608775,2.1827,229.01,228.96,1.4367]
[1734002608776,2.1827,229.01,228.97,2.1831]
[1734002613177,2.1827,229.01,228.98,8.30922671]
[1734002613374,10.46922671,229.01,228.94,3.5464]
[1734002613575,8.30922671,228.99,228.88,4.1063]
[1734002613781,8.30922671,228.99,228.92,8.30922671]
[1734002613782,2.1834,228.95,228.92,8.30922671]
[1734002614177,8.30922671,228.99,228.92,8.30922671]
[1734002614679,8.30922671,228.97,228.9,8.30922671]
[1734002614879,2.1835,228.93,228.9,10.49292671]
[1734002615178,2.16,228.96,228.88,9.42376969]
[1734002615473,8.30922671,228.95,228.88,12.41552671]
[1734002615872,2.1835,228.93,228.9,8.30922671]
[1734002616076,2.16,228.96,228.9,8.30922671]
[1734002616478,2.16,228.96,228.94,8.30922671]
[1734002616686,2.16,229.0,228.94,8.30922671]
[1734002617379,2.16,229.0,228.94,2.1834]
[1734002618184,2.1831,228.98,228.94,2.1834]
[1734002618380,2.16,229.0,228.88,4.1063]
[1734002618581,2.1836,228.92,228.88,2.7251]
[1734002618781,2.16,229.0,228.88,2.7251]
[1734002619079,2.16,229.0,228.9,2.1837]
[1734002619282,2.16,229.0,228.88,2.7251]
[1734002619484,2.16,229.0,228.91,2.1836]
[1734002619880,2.1833,228.95,228.91,2.1836]
[1734002620382,2.16,229.0,228.91,2.1836]
[1734002621485,12.98779035,229.01,228.92,2.1835]
[1734002621678,2.16,229.0,228.88,2.7251]
[1734002621882,4.3428,229.0,228.9,12.98779035]
[1734002622083,4.3428,229.0,228.97,2.1831]
[1734002622680,1.4518,229.06,228.93,12.98779035]
[1734002622881,5.1431763,229.08,228.96,12.98779035]
[1734002622882,2.16,229.05,228.96,12.98779035]
[1734002623388,2.1827,229.02,228.98,2.1829]
[1734002623587,2.1827,229.02,228.96,12.98779035]
[1734002623588,2.16,229.05,228.96,15.14779035]
[1734002623986,2.16,229.05,229.02,2.1826]
[1734002624485,2.16,229.05,229.03,2.1825]
[1734002624785,2.16,229.08,228.99,12.98779035]
[1734002625183,2.1822,229.06,229.02,2.1826]
[1734002625389,0.20661,229.1,228.99,12.98779035]
[1734002625893,0.20661,229.1,229.02,12.98779035]
[1734002626086,0.20661,229.1,229.02,15.14779035]
[1734002626384,2.182,229.09,229.03,2.1824]
[1734002626584,2.182,229.09,229.02,2.16]
[1734002627085,2.182,229.09,229.04,2.1824]
[1734002627586,2.182,229.09,229.02,2.16]
[1734002627986,2.38851,229.1,229.02,15.14779035]
[1734002628387,2.38851,229.1,229.05,2.1823]
[1734002629985,2.182,229.09,229.05,2.1823]
[1734002630291,0.20661,229.1,229.04,2.1824]
[1734002630491,0.20661,229.1,229.02,2.16]
[1734002630889,361.2828335,229.24,229.08,12.98779035]
[1734002631190,20.40265229,229.22,229.11,12.98779035]
[1734002631390,8.64253625,229.21,229.14,2.1815]
[1734002631591,11.76011604,229.21,229.14,2.1815]
[1734002631792,1.4051,229.23,229.14,2.1815]
[1734002631993,10.04820857,229.23,229.14,2.1815]
[1734002632197,2.1811,229.18,229.12,2.1816]
[1734002632396,2.1811,229.18,229.11,15.14779035]
[1734002633189,2.181,229.19,229.14,2.1814]
[1734002633494,2.16,229.25,229.11,15.14779035]
[1734002633693,2.16,229.25,229.12,1.3762]
[1734002633992,22.55130562,229.25,229.12,1.3762]
[1734002634189,8.63791898,229.24,229.12,1.3762]
[1734002634396,2.1811,229.18,229.14,2.1815]
[1734002635096,2.181,229.2,229.14,2.1815]
[1734002635396,2.16,229.25,229.16,2.1813]
[1734002635993,2.1809,229.21,229.16,2.1813]
[1734002636190,2.16,229.25,229.12,2.7589]
[1734002636393,2.16,229.25,229.14,2.1814]
[1734002636592,2.16,229.25,229.12,2.7589]
[1734002637589,2.1809,229.2,229.15,2.1813]
[1734002638300,2.1809,229.2,229.12,2.7589]
[1734002638998,2.1808,229.22,229.12,2.7589]
[1734002639195,2.16,229.25,229.14,12.98779035]
[1734002639401,180.64141675,229.35,229.17,12.98779035]
[1734002639402,12.98779035,229.32,229.17,12.98779035]
[1734002639601,20.34569161,229.31,229.17,15.14779035]
[1734002639796,10.77829779,229.3,229.17,15.14779035]
[1734002640099,2.16,229.3,229.17,15.14779035]
[1734002640402,2.1804,229.25,229.17,15.14779035]
[1734002640804,2.1802,229.28,229.23,2.1806]
[1734002641000,2.18,229.3,229.23,2.1806]
[1734002641505,2.1802,229.28,229.23,2.1806]
[1734002641698,2.18,229.3,229.23,2.1806]
[1734002642099,8.61413021,229.33,229.25,2.1804]
[1734002642407,5.15289928,229.34,229.23,12.98779035]
[1734002642708,7.33259928,229.34,229.29,2.18]
[1734002642900,2.1797,229.34,229.29,2.18]
[1734002643108,2.1797,229.33,229.29,2.18]
[1734002643804,2.1796,229.35,229.3,2.1799]
[1734002643997,54.65881117,229.37,229.27,2.18]
[1734002644404,15.16779035,229.38,229.27,2.1801]
[1734002644604,15.16779035,229.38,229.23,15.16779035]
[1734002645405,15.16779035,229.38,229.28,2.1801]
[1734002645406,2.1797,229.33,229.28,2.1801]
[1734002645607,2.1797,229.33,229.23,15.16779035]
[1734002645810,2.18,229.38,229.26,12.98779035]
[1734002646204,2.1796,229.35,229.3,2.1799]
[1734002647511,2.1796,229.34,229.3,2.1799]
[1734002648310,3.6095,229.41,229.29,12.98779035]
[1734002648808,2.1793,229.38,229.32,2.1797]
[1734002649008,3.6095,229.41,229.32,2.1797]
[1734002649208,3.6095,229.41,229.29,12.98779035]
[1734002649410,12.98779035,229.4,229.27,2.18]
[1734002649600,12.98779035,229.4,229.26,12.98779035]
[1734002650110,2.1799,229.31,229.27,2.1802]
[1734002650411,2.18,229.36,229.26,12.98779035]
[1734002650611,2.1798,229.33,229.28,2.1801]
[1734002651002,2.1798,229.33,229.26,12.98779035]
[1734002651408,4.3594,229.36,229.32,2.1797]
[1734002651705,2.1794,229.36,229.32,2.1797]
[1734002654015,2.18,229.4,229.26,12.98779035]
[1734002654208,2.18,229.4,229.26,15.16779035]
[1734002654410,2.1798,229.32,229.28,2.1801]
[1734002655505,2.18,229.4,229.29,2.18]
[1734002656712,2.1797,229.33,229.29,2.18]
[1734002657913,2.1797,229.34,229.3,2.1799]
[1734002658108,2.18,229.4,229.29,12.98779035]
[1734002658509,2.1795,229.36,229.29,12.98779035]
[1734002658710,180.64141675,229.51,229.32,12.98779035]
[1734002658911,2.18,229.42,229.32,12.98779035]
[1734002659714,2.18,229.42,229.34,2.1795]
[1734002659715,2.1793,229.38,229.34,2.1795]
[1734002660412,2.18,229.44,229.35,12.98779035]
[1734002660606,2.18,229.46,229.38,12.98779035]
[1734002660806,2.1788,229.43,229.38,15.16689035]
[1734002661205,2.1788,229.43,229.38,12.98779035]
[1734002661912,2.1788,229.42,229.39,2.1791]
[1734002663022,2.1786,229.45,229.41,12.98779035]
[1734002663315,2.1786,229.45,229.36,2.18]
[1734002663316,2.18,229.5,229.44,12.98779035]
[1734002663717,2.18,229.53,229.44,12.98779035]
[1734002664131,5.24064376,229.55,229.44,12.98779035]
[1734002664320,2.18,229.54,229.44,12.98779035]
[1734002664526,2.18,229.54,229.45,2.1785]
[1734002665818,2.1782,229.49,229.45,2.1785]
[1734002666221,2.1782,229.49,229.44,12.98779035]
[1734002666521,2.1782,229.49,229.44,15.16639035]
[1734002666821,2.1782,229.48,229.44,15.16639035]
[1734002667621,2.18,229.54,229.44,12.98779035]
[1734002667813,2.18,229.54,229.47,12.98779035]
[1734002668022,2.1779,229.52,229.48,2.1782]
[1734002668218,2.18,229.56,229.47,12.98779035]
[1734002668416,1.3972,229.58,229.47,12.98779035]
[1734002668620,2.18,229.58,229.47,12.98779035]
[1734002668822,2.1777,229.54,229.5,15.16579035]
[1734002669020,8.55105926,229.57,229.5,12.98779035]
[1734002669323,2.1777,229.54,229.47,12.98779035]
[1734002669512,8.55105926,229.57,229.47,12.98779035]
[1734002670021,2.1783,229.47,229.44,15.10779035]
[1734002671016,2.1782,229.49,229.44,15.10779035]
[1734002671615,2.1783,229.48,229.44,15.10779035]
[1734002674720,2.12,229.53,229.47,12.98779035]
[1734002674922,2.12,229.53,229.44,2.12]
[1734002674923,180.64141675,229.54,229.5,12.98779035]
[1734002675224,180.64141675,229.57,229.5,3.70450835]
[1734002675924,2.12,229.58,229.5,3.70450835]
[1734002676124,8.58004609,229.59,229.5,3.70450835]
[1734002676447,8.58004609,229.59,229.53,12.98779035]
[1734002676947,180.64141675,229.61,229.53,12.98779035]
[1734002677148,8.58362205,229.6,229.53,12.98779035]
[1734002677336,2.1774,229.58,229.53,12.98779035]
[1734002677836,25.20715814,229.61,229.53,12.98779035]
[1734002678033,2.12,229.62,229.53,12.98779035]
[1734002678436,2.1775,229.56,229.53,12.98779035]
[1734002679149,2.12,229.61,229.53,12.98779035]
[1734002679448,2.12,229.61,229.45,12.98779035]
[1734002679449,15.10779035,229.61,229.45,2.12]
[1734002679642,20.26921771,229.6,229.45,2.12]
[1734002679847,2.1781,229.5,229.45,4.2985]
[1734002680051,2.12,229.55,229.45,2.12]
[1734002680518,2.178,229.52,229.47,12.98779035]
[1734002680841,2.12,229.55,229.47,12.98779035]
[1734002681149,2.12,229.55,229.5,12.98779035]
[1734002681351,22.39452954,229.6,229.53,12.98779035]
[1734002681548,2.1773,229.58,229.53,15.16559035]
[1734002682951,4.2972,229.6,229.55,2.1776]
[1734002683454,2.12,229.6,229.53,12.98779035]
[1734002684245,2.1773,229.58,229.53,12.98779035]
[1734002684649,2.12,229.6,229.53,12.98779035]
[1734002684929,2.1773,229.58,229.53,15.16559035]
[1734002686929,1.3612,229.63,229.53,12.98779035]
[1734002687133,9.96708864,229.63,229.53,12.98779035]
[1734002687428,2.178,229.52,229.5,12.98779035]
[1734002690220,2.12,229.59,229.47,12.98779035]
[1734002690421,2.178,229.51,229.47,12.98779035]
[1734002691128,2.1781,229.5,229.47,12.98779035]
[1734002691934,2.178,229.51,229.47,15.16609035]
[1734002692228,2.12,229.59,229.47,15.16609035]
[1734002692429,12.98779035,229.57,229.44,12.98779035]
[1734002692634,12.98779035,229.57,229.42,4.9205]
[1734002692635,20.33560716,229.56,229.42,4.9205]
[1734002692830,20.33560716,229.55,229.42,4.9205]
[1734002693033,47.70908147,229.54,229.42,4.9793]
[1734002693228,47.70908147,229.54,229.42,1.3932]
[1734002693229,11.72170954,229.53,229.42,1.3932]
[1734002693432,8.61389762,229.52,229.4,0.50928]
[1734002693633,11.72170954,229.51,229.4,0.50928]
[1734002693843,8.61389762,229.5,229.4,0.50928]
[1734002694134,13.84170954,229.49,229.4,0.50928]
[1734002694336,8.61389762,229.48,229.4,0.50928]
[1734002694536,2.1786,229.45,229.4,0.50928]
[1734002694741,2.12,229.49,229.4,0.50928]
[1734002694938,2.12,229.49,229.41,12.98779035]